bitfinex/quotes_ETHUSD_20250801
["timestamp","ask_amount","ask_price","bid_price","bid_amount"]
[1754077344706,0.1416,3532.0,3530.4,3.3525602]
[1754077344707,0.1416,3532.0,3531.9,33.0]
[1754077344914,4.8586,3532.0,3531.9,33.45439324]
[1754077345117,4.8586,3532.0,3531.9,35.83133724]
[1754077345311,4.717,3532.0,3531.9,35.83133724]
[1754077345516,0.4294,3532.5,3532.2,3.0]
[1754077345734,0.4294,3532.4,3532.3,11.049832]
[1754077346040,10.43063647,3532.4,3532.3,11.251832]
[1754077346243,11.34847854,3532.4,3532.3,3.0]
[1754077346553,2.83117692,3532.1,3530.2,30.0]
[1754077346856,0.6916,3531.6,3530.6,2.917449]
[1754077347031,0.55,3531.4,3530.6,25.440262]
[1754077347210,4.716,3531.3,3531.0,30.0]
[1754077347406,0.1416,3531.2,3530.9,2.8320869]
[1754077347651,2.0449,3531.2,3531.1,20.090754]
[1754077347816,4.716,3531.3,3531.0,3.239474]
[1754077348010,7.54783063,3531.3,3531.0,3.067474]
[1754077348251,2.8827,3531.2,3530.6,5.487585]
[1754077348407,2.8827,3531.2,3530.9,3.0]
[1754077348608,4.716,3531.3,3531.1,9.8088997]
[1754077348814,4.716,3531.3,3531.2,26.685545]
[1754077349048,4.716,3531.3,3531.2,17.362846]
[1754077349347,4.716,3531.3,3531.0,29.228137]
[1754077349526,4.716,3531.3,3531.2,24.825021]
[1754077350010,4.716,3531.3,3531.2,12.435363]
[1754077350212,4.715,3531.3,3531.1,16.244558]
[1754077350424,4.715,3531.3,3531.1,8.712558]
[1754077351111,4.715,3531.3,3531.2,27.107479]
[1754077351313,4.715,3531.3,3531.1,12.910662]
[1754077351521,4.715,3531.3,3531.2,18.9676]
[1754077351721,6.6183,3531.3,3531.0,3.0]
[1754077352016,6.6183,3531.3,3530.0,3.0]
[1754077352017,0.55,3531.1,3530.0,3.0]
[1754077352211,2.3327,3531.2,3530.3,11.718567]
[1754077352212,0.55,3530.9,3530.3,11.718567]
[1754077352458,2.83236842,3530.7,3530.5,3.0]
[1754077352659,0.55,3530.9,3530.7,9.81]
[1754077352859,8.09621932,3530.8,3530.7,9.81]
[1754077353166,6.35683466,3530.8,3530.1,19.5481]
[1754077353466,6.35683466,3530.8,3529.0,3.3417157]
[1754077353467,2.83230739,3530.7,3530.0,19.046483]
[1754077353772,0.55,3530.6,3530.2,2.892334]
[1754077353946,5.264,3530.5,3530.4,8.609211]
[1754077354147,2.4533,3530.5,3530.4,16.485452]
[1754077354349,5.264,3530.5,3530.4,6.729446]
[1754077354665,7.1673,3530.5,3530.4,6.729446]
[1754077354836,6.6173,3530.5,3530.4,6.729446]
[1754077355164,4.714,3530.5,3530.4,20.960179]
[1754077355336,4.7351121,3531.4,3530.8,30.0]
[1754077355538,4.7351121,3531.4,3530.4,3.0]
[1754077355539,4.714,3531.3,3531.0,15.750256]
[1754077355743,0.55,3531.3,3531.2,11.728201]
[1754077356058,9.87751831,3531.3,3531.2,3.0]
[1754077356368,10.42751831,3531.3,3531.2,3.0]
[1754077356663,10.42751831,3531.3,3530.4,3.0]
[1754077356664,3.38230384,3530.7,3530.4,3.0]
[1754077356840,3.38230384,3530.7,3530.5,6.264298]
[1754077356841,6.6163,3530.6,3530.5,6.264298]
[1754077357037,4.713,3530.6,3530.5,6.264298]
[1754077357275,0.55,3531.3,3530.7,30.0]
[1754077357472,4.713,3531.2,3531.0,3.0]
[1754077357671,7.544964,3531.2,3531.1,16.717667]
[1754077357850,9.448264,3531.2,3531.1,9.840667]
[1754077358047,6.7579,3531.2,3531.1,5.951667]
[1754077358357,9.5897985,3531.2,3531.1,5.951667]
[1754077358567,11.81135269,3531.2,3531.1,3.0]
[1754077359070,7.09835269,3531.2,3531.1,3.0]
[1754077359272,11.81035269,3531.2,3531.1,3.0]
[1754077359473,8.97845419,3531.2,3531.1,5.894432]
[1754077359770,7.3069,3531.2,3531.1,7.50641]
[1754077359975,2.5949,3531.2,3531.1,7.50641]
[1754077360140,7.3069,3531.2,3531.1,7.50641]
[1754077360339,5.4036,3531.2,3531.1,7.50641]
[1754077360554,5.4036,3531.2,3531.1,15.28012]
[1754077360742,0.1416,3531.2,3531.1,18.1120987]
[1754077361062,4.8536,3531.2,3531.1,7.039632]
[1754077361436,6.802,3531.7,3531.2,33.0]
[1754077361640,0.55,3531.5,3531.4,33.0]
[1754077361841,0.001,3532.0,3531.5,2.83165383]
[1754077362091,4.711,3531.9,3531.8,19.616975]
[1754077362385,0.1416,3531.9,3531.8,25.4483924]
[1754077362685,4.8526,3531.9,3531.8,14.173154]
[1754077363379,4.8526,3531.9,3531.8,13.255068]
[1754077363744,4.8526,3531.9,3531.8,3.0]
[1754077363949,4.8526,3531.9,3531.8,13.310624]
[1754077364149,4.8526,3531.9,3531.8,7.713857]
[1754077364672,0.55,3531.8,3531.1,0.002]
[1754077364845,0.55,3531.0,3530.9,2.83213911]
[1754077365047,1.30716,3531.9,3531.2,16.501248]
[1754077365048,0.55,3531.4,3531.2,16.501248]
[1754077365283,6.802,3531.7,3531.5,2.83165273]
[1754077365484,6.548,3531.6,3531.4,3.0]
[1754077365782,6.548,3531.6,3531.4,5.016962]
[1754077365783,0.6916,3531.5,3531.4,5.016962]
[1754077365961,0.6916,3531.5,3530.5,3.0]
[1754077365962,2.5306,3531.5,3531.2,3.0]
[1754077366291,7.098,3531.4,3531.3,8.508778]
[1754077366484,7.098,3531.4,3531.3,8.701043]
[1754077366684,7.2396,3531.4,3531.3,8.701043]
[1754077366886,7.2396,3531.4,3531.3,25.135753]
[1754077367064,7.2396,3531.4,3531.3,24.837877]
[1754077367386,0.1416,3531.4,3531.3,18.26381531]
[1754077367592,6.802,3531.7,3531.5,32.83158359]
[1754077367796,6.802,3531.7,3531.5,35.83165793]
[1754077367797,4.708,3531.6,3531.5,35.83165793]
[1754077367999,4.708,3531.6,3530.9,4.74111776]
[1754077368000,0.55,3531.5,3529.5,4.708]
[1754077368160,0.55,3531.3,3530.9,2.83212567]
[1754077368491,0.1416,3531.0,3530.8,21.166415]
[1754077368661,4.708,3530.9,3530.8,28.22872]
[1754077368859,4.708,3530.9,3530.8,31.06093932]
[1754077369853,4.708,3530.9,3530.8,32.83221932]
[1754077370112,4.70033628,3530.9,3530.8,35.83221932]
[1754077370619,4.70033628,3530.9,3530.8,26.81555432]
[1754077370790,4.70033628,3530.9,3530.8,35.83221932]
[1754077370968,4.70033628,3530.9,3530.8,28.526715]
[1754077371168,4.70033628,3530.9,3530.8,24.903621]
[1754077371708,4.70033628,3530.9,3530.8,27.73584032]
[1754077371873,4.70033628,3530.9,3530.8,35.83221932]
[1754077372906,0.1416,3531.1,3531.0,2.8320589]
[1754077373106,4.706,3531.1,3531.0,35.83199602]
[1754077373331,4.706,3531.1,3531.0,35.97359602]
[1754077374332,4.706,3531.1,3531.0,5.83199602]
[1754077374523,4.706,3531.1,3531.0,35.83199602]
[1754077374687,4.706,3531.1,3531.0,26.960344]
[1754077374873,4.706,3531.1,3531.0,32.0152299]
[1754077375509,4.706,3531.1,3531.0,32.1568299]
[1754077375894,4.706,3531.1,3531.0,35.9736589]
[1754077376396,4.706,3531.1,3531.0,25.7502699]
[1754077376590,4.706,3531.1,3531.0,25.6086699]
[1754077376977,4.706,3531.1,3531.0,35.8320589]
[1754077377416,4.706,3531.1,3531.0,34.3631069]
[1754077377713,4.706,3531.1,3531.0,27.9310369]
[1754077377915,5.33236,3531.1,3531.0,12.2459589]
[1754077378116,4.8476,3531.1,3531.0,8.406827]
[1754077378412,4.8476,3531.1,3531.0,7.691938]
[1754077378708,4.8476,3531.1,3531.0,7.344738]
[1754077378921,4.8476,3531.1,3531.0,10.379105]
[1754077379080,4.8476,3531.1,3531.0,7.830205]
[1754077379412,4.8476,3531.1,3531.0,5.37307]
[1754077379614,5.77666,3531.1,3531.0,5.37307]
[1754077380121,9.1586387,3531.1,3531.0,5.41307]
[1754077380280,6.32666,3531.1,3531.0,5.503937]
[1754077380475,0.1416,3531.1,3531.0,8.3359959]
[1754077380675,6.9436,3531.7,3531.6,5.83157775]
[1754077380878,11.6466,3531.7,3531.6,35.83157775]
[1754077381112,4.8446,3531.7,3531.6,35.83157775]
[1754077381297,4.8446,3531.7,3531.6,18.06870575]
[1754077381472,4.703,3531.7,3531.6,12.889713]
[1754077381674,8.1483,3531.7,3531.6,6.300485]
[1754077382075,10.97979757,3531.7,3531.6,9.998999]
[1754077382318,0.612,3531.7,3531.6,9.998999]
[1754077382511,4.8436,3531.7,3531.6,9.998999]
[1754077383107,4.8436,3531.7,3531.6,32.946588]
[1754077383312,4.8436,3531.7,3531.6,30.111588]
[1754077383513,4.702,3531.7,3531.6,13.683473]
[1754077383713,5.47059905,3531.7,3531.6,9.594349]
[1754077384007,4.703,3531.7,3531.6,25.214226]
[1754077384219,4.703,3531.7,3531.6,3.0]
[1754077384425,7.97879757,3531.7,3531.6,3.0]
[1754077384588,7.5363,3531.7,3531.6,14.534442]
[1754077385087,7.5363,3531.7,3531.6,3.0]
[1754077385287,8.18515637,3531.7,3531.6,16.855442]
[1754077385497,11.01665394,3531.7,3531.6,16.855442]
[1754077385702,8.18515637,3531.7,3531.6,16.855442]
[1754077385927,4.8446,3531.7,3531.6,16.855442]
[1754077386143,4.8446,3531.7,3531.6,3.0]
[1754077386422,4.8446,3531.7,3531.6,16.419436]
[1754077386625,5.3946,3531.7,3531.6,16.419436]
[1754077386926,10.50939757,3531.7,3531.6,5.265043]
[1754077387130,9.44207407,3531.7,3531.6,5.912329]
[1754077387295,12.27357164,3531.7,3531.6,5.942329]
[1754077387626,12.27357164,3531.7,3531.6,5.269363]
[1754077387824,12.27357164,3531.7,3531.6,7.736546]
[1754077387989,12.27357164,3531.7,3531.6,5.318197]
[1754077388190,12.27357164,3531.7,3531.6,8.038508]
[1754077388799,9.44207407,3531.7,3531.6,8.038508]
[1754077389216,0.1426,3531.7,3531.6,28.92195975]
[1754077389419,4.8416,3531.7,3531.6,26.090382]
[1754077389586,4.8416,3531.7,3531.6,10.029902]
[1754077390235,0.1426,3531.7,3531.6,23.245351]
[1754077390399,0.001,3531.7,3531.6,26.44522875]
[1754077390584,4.7,3531.7,3531.6,26.58682875]
[1754077390922,4.7,3531.7,3531.6,26.21852875]
[1754077391307,4.7,3531.7,3531.6,35.97317775]
[1754077391685,4.7,3531.7,3531.6,14.85471075]
[1754077391893,5.1443,3531.7,3531.6,7.321889]
[1754077392091,10.83489757,3531.7,3531.6,8.743878]
[1754077392291,10.83489757,3531.7,3531.6,11.309029]
[1754077392292,8.0034,3531.7,3531.6,11.309029]
[1754077393221,8.0034,3531.7,3531.6,15.669585]
[1754077393222,10.83489757,3531.7,3531.6,15.669585]
[1754077393425,8.0034,3531.7,3531.6,15.669585]
[1754077394427,8.0034,3531.7,3531.6,15.737585]
[1754077394722,5.7201,3531.7,3531.6,14.567416]
[1754077394927,6.1644,3531.7,3531.6,14.038813]
[1754077395294,6.1644,3531.7,3531.6,12.342129]
[1754077395824,0.55,3531.6,3531.4,3.82898]
[1754077396026,0.55,3531.6,3531.5,3.0]
[1754077396233,0.55,3531.6,3531.5,12.563389]
[1754077396234,1.03928613,3531.6,3531.5,12.563389]
[1754077396429,1.18088613,3531.6,3531.5,16.529313]
[1754077396633,1.18088613,3531.6,3531.5,14.844313]
[1754077396933,4.01246388,3531.6,3531.5,3.0]
[1754077397099,1.65378613,3531.6,3531.5,5.036645]
[1754077397292,1.18088613,3531.6,3531.5,16.679954]
[1754077398210,1.18088613,3531.6,3531.5,8.306645]
[1754077398430,4.48536388,3531.6,3531.5,5.947232]
[1754077398841,1.65378613,3531.6,3531.5,5.947232]
[1754077399334,1.65378613,3531.6,3531.5,17.882956]
[1754077399524,1.65378613,3531.6,3531.5,13.882956]
[1754077399721,1.18088613,3531.6,3531.5,13.882956]
[1754077400036,6.46726388,3531.6,3531.5,11.275911]
[1754077400232,7.93568613,3531.6,3530.4,2.83249281]
[1754077400430,0.1416,3530.8,3530.7,6.006974]
[1754077400634,4.8356,3530.8,3530.7,24.236003]
[1754077401198,4.8356,3530.8,3530.7,24.6706169]
[1754077401424,4.8356,3530.8,3530.7,16.133861]
[1754077401733,4.8356,3530.8,3530.7,7.762745]
[1754077402099,5.3856,3530.8,3530.7,5.010743]
[1754077402301,2.83254022,3530.4,3530.3,2.52070862]
[1754077402545,0.55,3530.3,3529.3,0.43222243]
[1754077402714,0.55,3530.3,3528.3,30.3683]
[1754077402715,0.55,3529.8,3529.4,2.752329]
[1754077402900,0.1416,3529.4,3528.9,0.1416]
[1754077403237,4.693,3529.3,3529.0,30.0]
[1754077403536,0.1416,3529.4,3529.3,26.089686]
[1754077403737,0.1416,3529.4,3529.3,23.29939561]
[1754077403738,4.8346,3529.4,3529.3,23.29939561]
[1754077404237,4.8346,3529.4,3529.3,3.82367701]
[1754077404536,7.82015,3529.4,3528.7,2.83390483]
[1754077404738,0.55,3529.3,3528.5,32.83404492]
[1754077404915,0.1416,3528.9,3528.5,30.0]
[1754077405140,0.1416,3528.9,3528.7,3.0]
[1754077405331,4.693,3528.8,3528.6,15.40072]
[1754077405514,4.693,3528.8,3528.7,3.0]
[1754077405727,4.693,3528.8,3528.7,17.925423]
[1754077406039,4.8346,3528.8,3528.7,17.925423]
[1754077406243,4.8346,3528.8,3528.7,9.443423]
[1754077407217,9.17478452,3528.8,3528.7,6.659181]
[1754077407441,0.55,3528.7,3526.8,2.83537931]
[1754077407650,4.692,3528.6,3528.3,3.0]
[1754077407968,1.579126,3528.6,3528.5,6.395172]
[1754077408259,20.7986625,3528.6,3528.5,0.002]
[1754077408460,21.2715625,3528.6,3528.5,0.002]
[1754077408647,16.5795625,3528.6,3528.5,0.002]
[1754077408828,18.43757736,3528.6,3528.5,0.002]
[1754077409227,21.2715625,3528.6,3528.5,0.002]
[1754077409550,18.43657736,3528.6,3528.5,0.002]
[1754077409939,18.43657736,3528.6,3528.5,18.795428]
[1754077410118,18.43757736,3528.6,3528.5,19.579238]
[1754077410317,0.55,3528.5,3526.2,0.55]
[1754077410513,6.53575774,3528.4,3528.0,2.83440678]
[1754077410740,4.692,3528.4,3528.1,30.0]
[1754077411113,7.654063,3528.8,3526.2,1.49393429]
[1754077411321,0.55,3528.6,3528.3,21.595849]
[1754077411519,0.851058,3528.9,3528.5,10.35533543]
[1754077411718,0.55,3528.7,3528.6,10.990528]
[1754077412237,0.55,3528.7,3527.3,2.83498524]
[1754077412238,6.805,3528.8,3526.4,29.322153]
[1754077412576,6.805,3528.8,3526.1,0.21028991]
[1754077412577,0.55,3527.5,3524.4,1.48476312]
[1754077412722,7.91001381,3528.7,3524.9,3.0]
[1754077412723,5.1649,3527.4,3524.9,3.0]
[1754077412917,0.55,3527.3,3527.0,9.087004]
[1754077413115,6.806,3527.2,3526.9,5.40124]
[1754077413314,6.806,3527.2,3526.1,12.827087]
[1754077413315,0.55,3527.0,3526.1,12.827087]
[1754077413517,0.55,3527.0,3526.7,3.0]
[1754077413719,4.691,3526.9,3526.8,11.811173]
[1754077413971,4.691,3526.9,3526.3,2.83580631]
[1754077413972,4.691,3526.9,3526.3,8.515832]
[1754077414269,4.691,3526.9,3523.8,1.81588362]
[1754077414270,0.55,3526.8,3526.1,0.21450285]
[1754077414473,0.55,3526.8,3526.1,3.05043925]
[1754077414649,0.55,3526.6,3526.3,2.626532]
[1754077414955,4.691,3526.7,3526.2,0.002]
[1754077414956,0.55,3526.4,3526.2,0.002]
[1754077415143,5.242,3526.3,3526.2,0.002]
[1754077415343,7.6968,3526.3,3526.2,0.002]
[1754077415541,10.53263359,3526.3,3526.2,0.002]
[1754077415743,10.90779928,3526.3,3526.2,0.002]
[1754077416137,3.37996569,3526.3,3526.2,0.002]
[1754077416317,8.07096569,3526.3,3526.2,0.002]
[1754077417168,0.55,3526.3,3526.2,14.851218]
[1754077417343,7.6958,3526.3,3526.2,0.002]
[1754077417550,7.8374,3526.3,3526.2,4.052803]
[1754077417731,5.8555,3526.3,3526.2,9.667046]
[1754077418265,5.8555,3526.3,3526.2,7.424739]
[1754077418596,0.1416,3526.3,3526.2,5.83791401]
[1754077418877,16.51765136,3527.4,3527.3,17.27365862]
[1754077418878,6.806,3527.4,3527.3,17.27365862]
[1754077419221,11.497,3527.4,3527.3,9.55487762]
[1754077419431,11.497,3527.4,3527.3,3.0]
[1754077419632,11.497,3527.4,3526.2,0.002]
[1754077419633,2.83524524,3527.1,3526.3,6.74713881]
[1754077419840,0.55,3526.9,3526.6,3.0]
[1754077420036,0.55,3526.9,3526.3,6.062231]
[1754077420274,7.1458,3527.0,3526.2,0.002]
[1754077420275,9.71165136,3526.4,3526.2,0.002]
[1754077420499,5.241,3526.3,3526.2,0.002]
[1754077420698,0.55,3526.2,3524.5,30.0]
[1754077420882,0.55,3526.0,3525.4,6.859808]
[1754077421058,0.55,3525.8,3525.4,3.0]
[1754077421262,0.55,3525.6,3525.2,10.716736]
[1754077421458,0.55,3525.6,3525.3,20.869301]
[1754077421688,5.241,3525.5,3525.4,11.587092]
[1754077421996,0.55,3525.4,3525.3,12.71606]
[1754077422203,0.55,3525.4,3525.3,6.093593]
[1754077422499,5.241,3525.4,3525.3,11.55086601]
[1754077422864,0.55,3525.6,3525.5,4.003112]
[1754077423065,5.241,3525.6,3525.5,4.003112]
[1754077423501,6.809,3525.7,3525.5,31.003891]
[1754077423711,7.359,3525.7,3525.6,12.332942]
[1754077423860,7.359,3525.7,3525.4,2.83648165]
[1754077423861,0.55,3525.6,3525.4,2.83648165]
[1754077424066,0.55,3525.4,3525.3,6.72724301]
[1754077424261,6.809,3525.7,3525.6,10.85717764]
[1754077424465,6.811,3527.1,3526.7,6.281861]
[1754077424814,7.997474,3526.8,3525.2,15.48582]
[1754077425099,7.997474,3526.8,3523.5,4.691]
[1754077425100,0.55,3526.4,3524.5,2.83728188]
[1754077425304,0.55,3526.2,3525.6,7.564356]
[1754077425513,4.691,3526.1,3525.8,2.744536]
[1754077425710,0.9986,3526.0,3525.2,2.83671848]
[1754077425863,5.82609699,3526.0,3525.2,3.0]
[1754077426065,2.99,3526.0,3525.5,7.710743]
[1754077426281,2.5414,3526.0,3525.6,3.0]
[1754077426502,1.25260686,3525.9,3525.4,2.83654217]
[1754077426702,0.55,3525.7,3525.6,10.874167]
[1754077426860,0.9986,3525.7,3525.6,9.430167]
[1754077427217,2.99,3525.7,3524.9,2.83690825]
[1754077427415,2.99,3525.7,3525.0,3.0]
[1754077427617,0.55,3525.6,3525.3,10.03779961]
[1754077427816,5.241,3525.5,3525.2,5.83669275]
[1754077428026,5.241,3525.5,3525.3,9.386503]
[1754077428027,0.55,3525.4,3525.3,9.386503]
[1754077428329,0.55,3525.4,3525.3,5.474921]
[1754077428524,0.55,3525.4,3525.3,8.31155901]
[1754077428676,0.55,3525.4,3525.3,5.474921]
[1754077428876,0.55,3525.4,3525.3,10.121089]
[1754077429123,0.55,3525.4,3525.3,7.366182]
[1754077429504,0.55,3525.4,3525.3,7.408182]
[1754077429673,0.6916,3525.4,3525.3,6.03235]
[1754077429880,0.6916,3525.4,3525.3,16.772237]
[1754077430098,0.6916,3525.4,3525.3,5.474921]
[1754077430479,3.52815755,3525.4,3525.3,3.0]
[1754077430676,1.79714888,3525.4,3525.3,3.0]
[1754077430918,0.6916,3525.4,3525.3,10.224293]
[1754077431093,0.6916,3525.4,3525.3,5.677921]
[1754077431282,5.3826,3525.4,3525.3,5.677921]
[1754077431480,8.21915768,3525.4,3524.5,0.1416]
[1754077431816,0.1416,3525.0,3524.9,2.83695991]
[1754077431974,4.8316,3525.0,3524.9,32.83695991]
[1754077432180,0.1416,3525.0,3524.6,2.83720138]
[1754077432402,4.69,3524.9,3524.8,2.83697829]
[1754077432636,4.69,3524.9,3524.8,32.83697829]
[1754077432810,4.69,3524.9,3524.6,0.1416]
[1754077433122,4.69,3524.9,3524.8,32.65884529]
[1754077433515,0.1416,3525.1,3524.9,3.0]
[1754077433820,0.1416,3525.1,3525.0,9.76779]
[1754077434031,0.1416,3525.1,3524.9,29.821867]
[1754077434032,4.8316,3525.1,3524.9,29.821867]
[1754077434328,4.8316,3525.1,3522.9,0.3485093]
[1754077434489,4.8316,3525.1,3524.6,30.0]
[1754077434687,4.8316,3525.1,3525.0,20.820323]
[1754077435020,4.8316,3525.1,3524.7,30.0]
[1754077435183,4.8316,3525.1,3524.6,30.0]
[1754077435585,4.8316,3525.1,3524.9,3.185049]
[1754077435819,4.8316,3525.1,3525.0,6.108243]
[1754077436003,4.8316,3525.1,3524.9,13.858]
[1754077436206,4.8316,3525.1,3524.9,13.329397]
[1754077436404,4.8316,3525.1,3525.0,13.049202]
[1754077436604,4.8316,3525.1,3525.0,11.785801]
[1754077436788,4.8316,3525.1,3525.0,9.070801]
[1754077437833,4.8316,3525.1,3525.0,3.0]
[1754077438520,5.76336,3525.1,3525.0,3.0]
[1754077438967,5.76336,3525.1,3524.7,3.0]
[1754077439120,4.8316,3525.1,3524.9,3.0]
[1754077439431,4.8316,3525.1,3525.0,3.0]
[1754077439805,4.8316,3525.1,3524.8,3.0]
[1754077439989,4.8316,3525.1,3524.7,2.83712051]
[1754077440197,0.1416,3525.1,3525.0,5.83687943]
[1754077440421,0.1416,3525.1,3525.0,16.97967143]
[1754077440422,4.688,3525.1,3525.0,16.97967143]
[1754077440934,0.1416,3525.2,3525.1,16.67498595]
[1754077441135,4.8296,3525.2,3525.1,8.870741]
[1754077441301,4.8296,3525.2,3525.1,10.401032]
[1754077441494,4.688,3525.2,3525.1,6.108754]
[1754077441696,4.8296,3525.2,3525.1,8.94555295]
[1754077442238,6.812,3525.6,3525.3,3.0]
[1754077442554,0.6916,3525.4,3525.3,3.0]
[1754077442777,9.64840531,3525.6,3525.4,3.0]
[1754077443061,0.6916,3525.4,3525.2,3.0]
[1754077443209,0.6916,3525.4,3525.3,6.146116]
[1754077443210,0.55,3525.4,3525.3,6.146116]
[1754077443573,0.1416,3525.3,3524.8,2.554394]
[1754077443891,6.9536,3525.6,3525.5,2.83647709]
[1754077444041,0.1416,3525.6,3525.5,8.88209309]
[1754077444367,0.001,3525.9,3525.8,32.83623574]
[1754077444512,4.68700001,3525.9,3525.8,32.83623574]
[1754077444717,4.68700001,3525.9,3525.8,23.64220774]
[1754077445039,4.68700001,3525.9,3525.8,14.49476174]
[1754077445241,1e-08,3525.9,3525.8,14.63636174]
[1754077445444,6.813,3526.5,3526.4,19.51071017]
[1754077445655,11.5,3526.5,3526.4,18.72695417]
[1754077445812,11.5,3526.5,3526.4,29.63415217]
[1754077446209,0.98860985,3526.8,3526.7,28.26598495]
[1754077446425,5.67460985,3526.8,3526.7,23.85197309]
[1754077446849,5.67460985,3526.8,3526.7,25.73390309]
[1754077447062,5.67460985,3526.8,3526.7,8.65752809]
[1754077447225,5.67460985,3526.8,3526.7,11.71341709]
[1754077447419,0.98860985,3526.8,3526.7,8.32821409]
[1754077447646,5.67460985,3526.8,3526.7,8.46981409]
[1754077447954,5.67460985,3526.8,3526.7,34.11405609]
[1754077448165,5.67460985,3526.8,3526.7,8.65687852]
[1754077448455,5.67360985,3526.8,3526.7,9.54262652]
[1754077448834,5.67360985,3526.8,3526.7,10.60062652]
[1754077449635,0.98860985,3526.8,3526.7,10.60062652]
[1754077449841,5.67260985,3526.8,3526.7,13.86774852]
[1754077450039,5.67260985,3526.8,3526.7,14.00934852]
[1754077450564,0.98860985,3526.8,3526.7,14.00934852]
[1754077450863,5.67260985,3526.8,3526.7,29.02977452]
[1754077451069,0.98860985,3526.8,3526.7,29.02977452]
[1754077451262,0.001,3527.5,3527.4,9.47692125]
[1754077451561,4.684,3527.5,3527.4,5.098255]
[1754077451772,4.684,3527.5,3527.4,3.0]
[1754077451773,16.21412796,3527.5,3527.4,3.0]
[1754077451923,18.75552796,3527.5,3527.4,3.0]
[1754077452867,21.59039684,3527.5,3527.4,3.0]
[1754077453370,0.55,3527.4,3526.8,2.83537046]
[1754077453572,0.55,3527.4,3526.9,2.14806]
[1754077453726,0.55,3527.4,3526.7,0.21688443]
[1754077453727,4.683,3527.3,3527.1,2.83513799]
[1754077453925,4.683,3527.3,3527.2,8.272976]
[1754077454267,4.683,3527.3,3527.2,5.69331]
[1754077454435,0.1426,3527.5,3527.4,2.83494925]
[1754077454641,4.683,3527.5,3527.4,2.83494925]
[1754077454838,4.683,3527.5,3527.4,10.54608825]
[1754077455230,4.683,3527.5,3527.4,9.97688825]
[1754077455425,4.683,3527.5,3527.4,2.370939]
[1754077455656,0.4591,3527.5,3527.3,3.0]
[1754077455853,0.001,3527.5,3527.4,10.92218925]
[1754077456074,4.683,3527.5,3527.4,10.45375625]
[1754077456227,4.683,3527.5,3527.4,12.30748025]
[1754077456429,4.682,3527.5,3527.4,12.44908025]
[1754077456731,4.682,3527.5,3527.4,35.97654925]
[1754077456928,4.682,3527.5,3527.4,14.25338325]
[1754077457168,0.001,3527.5,3527.4,5.97654925]
[1754077457346,4.682,3527.5,3527.4,5.97654925]
[1754077457541,1e-08,3527.5,3527.4,5.97654925]
[1754077458976,4.68000001,3527.5,3527.4,5.97654925]
[1754077459149,4.68000001,3527.5,3527.4,6.68964304]
[1754077461552,4.68000001,3527.5,3527.4,5.97654925]
[1754077461931,1e-08,3527.5,3527.4,5.97654925]
[1754077462134,4.67900001,3527.5,3527.4,5.97654925]
[1754077463030,1e-08,3527.5,3527.4,5.97654925]
[1754077463376,1e-08,3527.7,3527.6,5.83478852]
[1754077463532,4.68,3527.9,3527.8,5.83462781]
[1754077463727,4.68,3527.9,3527.8,5.97622781]
[1754077463949,4.67734953,3527.9,3527.8,5.97622781]
[1754077464144,0.4581,3528.6,3528.5,2.83406546]
[1754077464345,5.1361,3528.6,3528.5,5.83406546]
[1754077464553,0.4581,3529.0,3528.7,2.83390483]
[1754077464761,0.4581,3529.0,3528.9,2.83374422]
[1754077464969,5.1361,3529.0,3528.9,2.83374422]
[1754077465175,6.81,3529.1,3529.0,2.83366392]
[1754077465375,11.488,3529.1,3529.0,2.83366392]
[1754077465780,12.0877,3529.1,3529.0,2.83366392]
[1754077466383,11.9451,3529.1,3529.0,2.83366392]
[1754077466740,9.88131194,3529.1,3528.0,3.0]
[1754077466980,9.88131194,3529.1,3528.3,3.0]
[1754077466981,0.55,3528.8,3528.3,3.0]
[1754077467289,0.1416,3528.5,3528.0,0.1416]
[1754077467440,7.0357,3528.4,3528.0,2.97602052]
[1754077467774,0.4581,3528.3,3528.1,3.0]
[1754077467978,6.5776,3528.4,3528.1,3.0]
[1754077468178,0.4581,3528.2,3528.1,3.0]
[1754077468479,0.4581,3528.2,3528.1,2.83438678]
[1754077468859,3.04365476,3528.2,3528.1,3.0]
[1754077469170,3.18525476,3528.2,3528.1,3.0]
[1754077470259,2.5013,3528.2,3528.1,5.83438678]
[1754077470455,0.5997,3528.2,3528.1,5.83438678]
[1754077470645,4.675,3528.2,3528.1,5.83438678]
[1754077470844,5.1331,3528.2,3528.1,5.83438678]
[1754077471057,5.1331,3528.2,3528.1,3.0]
[1754077471257,0.55,3528.1,3527.8,0.1416]
[1754077471456,2.83458071,3527.9,3526.9,2.83528456]
[1754077471672,9.74546796,3527.4,3526.5,0.20865546]
[1754077471944,9.74546796,3527.4,3525.9,2.8361553]
[1754077471945,0.1416,3527.1,3526.6,0.1416]
[1754077472148,0.55,3526.8,3525.5,0.001]
[1754077472374,4.675,3526.7,3525.8,3.0]
[1754077472588,0.4581,3526.6,3526.5,2.83565456]
[1754077472881,5.1331,3526.6,3526.5,3.0]
[1754077473081,0.55,3526.5,3525.5,0.001]
[1754077473381,0.55,3526.5,3526.2,2.83584983]
[1754077473681,0.4581,3526.4,3525.9,2.83610204]
[1754077473884,1.9016,3526.4,3525.5,0.001]
[1754077474086,0.4581,3526.3,3526.0,2.83607396]